bitfinex-derivatives/quotes_SOLF0:USTF0_20250307
["timestamp","ask_amount","ask_price","bid_price","bid_amount"]
[1741381016896,48.50535789,143.99,143.69,1.3918853]
[1741381017090,0.04511181,143.9,143.87,0.05326126]
[1741381017292,48.50535789,143.95,143.61,208.36]
[1741381017499,48.50535789,143.9,143.51,208.36]
[1741381017796,48.50535789,143.85,143.52,1.393534]
[1741381018094,48.50535789,143.79,143.69,0.04568108]
[1741381018296,256.86535789,143.79,143.69,0.04568108]
[1741381018491,0.04462219,143.7,143.52,1.393534]
[1741381018687,208.36,143.79,143.52,1.393534]
[1741381018904,48.50535789,143.65,143.52,1.18456215]
[1741381019200,0.05212859,143.62,143.46,48.50535789]
[1741381019393,2.859e-05,143.62,143.46,48.50535789]
[1741381019591,257.00535789,143.85,143.51,48.50535789]
[1741381019795,1.39043381,143.84,143.57,48.50535789]
[1741381019997,1.39043381,143.84,143.28,209.00754678]
[1741381020193,48.50535789,143.78,143.48,1.8241]
[1741381020403,257.00535789,143.83,143.48,1.8241]
[1741381020599,1.39043381,143.84,143.53,48.50535789]
[1741381020896,1.39043381,143.84,143.64,0.05332845]
[1741381021297,1.39043381,143.84,143.64,48.50535789]
[1741381021498,48.50535789,143.88,143.63,3.8084]
[1741381021697,48.50535789,143.82,143.63,3.8084]
[1741381021898,257.06535789,143.82,143.64,1.39236981]
[1741381022100,48.50535789,143.77,143.64,1.39236981]
[1741381022295,0.04933183,143.74,143.71,0.0482274]
[1741381022504,48.50535789,143.87,143.71,0.0482274]
[1741381022698,1.39024051,143.86,143.63,3.8084]
[1741381022900,1.39024051,143.86,143.63,208.56]
[1741381023097,257.06535789,143.95,143.63,208.56]
[1741381023302,209.9493713,143.95,143.63,257.06535789]
[1741381023496,1.3893713,143.95,143.64,1.39236981]
[1741381023700,6.9453,144.01,143.84,6.953]
[1741381023902,1.38879244,144.01,143.78,48.55491072]
[1741381024102,1.38879244,144.01,143.83,48.50535789]
[1741381024300,48.50535789,144.18,143.88,48.50535789]
[1741381024507,48.50535789,144.13,143.84,257.06535789]
[1741381024695,1.38725116,144.17,143.88,48.50535789]
[1741381024897,1.20854315,144.22,143.97,0.04587869]
[1741381025098,1.38686637,144.21,143.99,48.50535789]
[1741381025404,1.38686637,144.21,144.02,48.50535789]
[1741381025801,1.38686637,144.21,143.97,48.50535789]
[1741381026201,3.669e-05,144.1,144.09,6.9412]
[1741381026706,3.669e-05,144.1,143.89,1.38995065]
[1741381026707,48.50535789,144.19,143.89,209.90995065]
[1741381026902,1.9847,144.36,143.9,1.38985406]
[1741381026903,48.50535789,144.13,143.9,1.38985406]
[1741381027304,208.52,144.18,143.9,1.38985406]
[1741381027505,48.50535789,144.19,143.91,48.50535789]
[1741381027707,48.50535789,144.14,143.9,1.38985406]
[1741381027908,0.04397058,144.05,143.9,1.38985406]
[1741381028209,256.98535789,144.04,143.9,1.38985406]
[1741381028604,48.50535789,143.99,143.9,1.38985406]
[1741381028797,1250.88,144.19,143.9,1.38985406]
[1741381029000,1.9777,144.28,143.9,1.38985406]
[1741381029197,48.50535789,144.21,144.03,0.05037727]
[1741381029506,48.50535789,144.21,143.91,54.24565789]
[1741381029507,48.50535789,144.15,143.91,5.7403]
[1741381029703,208.48,144.18,143.92,1.38966092]
[1741381029902,48.50535789,144.15,143.92,1.38966092]
[1741381030404,48.50535789,144.15,143.94,6.9482]
[1741381030707,48.55736292,144.05,143.8,50.35415789]
[1741381031001,48.55736292,144.05,143.81,3.8915]
[1741381031204,48.50535789,144.1,143.81,3.8915]
[1741381031402,48.50535789,144.05,143.81,3.8915]
[1741381031607,1.38850319,144.04,143.81,3.8915]
[1741381031802,1.38850319,144.04,143.81,1.9847]
[1741381032008,0.04813641,143.94,143.92,0.04919838]
[1741381032503,6.9408,144.11,143.92,3.48]
[1741381032696,48.50535789,144.2,143.93,1.38956437]
[1741381032903,48.50535789,144.25,143.95,48.50535789]
[1741381033102,48.50535789,144.2,143.96,1.8481]
[1741381033301,48.50535789,144.2,143.96,0.64227247]
[1741381033499,48.50535789,144.15,143.96,0.64227247]
[1741381033900,48.50535789,144.1,143.93,1.38956437]
[1741381034108,0.05028457,144.07,144.04,0.0441127]
[1741381034303,0.05028457,144.07,144.04,3.5241127]
[1741381034606,48.50535789,144.15,143.93,1.38956437]
[1741381034996,0.0516224,144.07,144.04,0.04926679]
[1741381035195,1.38705874,144.19,144.04,0.04926679]
[1741381035402,1.38705874,144.19,144.03,3.791]
[1741381036004,1.38705874,144.19,144.06,48.50535789]
[1741381036205,48.50535789,144.35,144.06,48.50535789]
[1741381036405,208.4,144.44,144.11,48.54933284]
[1741381036602,6.9274,144.38,144.11,48.54933284]
[1741381036808,48.50535789,144.38,144.11,48.50535789]
[1741381037104,48.50535789,144.43,144.16,48.50535789]
[1741381037308,48.50535789,144.38,144.17,210.1589]
[1741381037511,48.50535789,144.33,144.15,208.3]
[1741381037806,48.50535789,144.28,144.26,7.922e-05]
[1741381038008,51.96535789,144.28,143.98,208.3]
[1741381038206,256.80535789,144.33,144.02,48.50535789]
[1741381038414,48.50535789,144.33,144.03,3.8553]
[1741381038707,48.50535789,144.28,144.03,3.8553]
[1741381038902,48.50535789,144.39,144.12,48.50535789]
[1741381039108,48.50535789,144.43,144.17,48.50535789]
[1741381039303,48.50535789,144.48,144.18,210.1465]
[1741381039501,0.04410413,144.31,144.19,2.0088]
[1741381039902,48.50535789,144.48,144.32,0.04585646]
[1741381040102,47.3710921,144.52,144.29,208.22]
[1741381040309,47.3710921,144.52,144.3,256.72535789]
[1741381040617,47.3710921,144.52,144.39,0.04725525]
[1741381040911,47.3710921,144.52,144.4,48.50535789]
[1741381041310,47.3710921,144.52,144.4,47.9290432]
[1741381041604,48.50535789,144.69,144.41,1.8679]
[1741381041803,48.50535789,144.69,144.45,0.04443405]
[1741381041999,1.8326,144.72,144.42,208.22]
[1741381042212,48.50535789,144.7,144.45,48.50535789]
[1741381042510,1.8326,144.72,144.5,48.50535789]
[1741381042706,1.8326,144.72,144.51,1.9055]
[1741381043006,48.50535789,144.74,144.51,1.9055]
[1741381043211,0.05167057,144.63,144.6,0.05131547]
[1741381043514,3.46,144.63,144.41,1.8679]
[1741381043710,48.50535789,144.59,144.39,1.9055]
[1741381043903,48.50535789,144.54,144.33,1.8393]
[1741381044305,48.50535789,144.49,144.25,208.02]
[1741381044505,1.9817,144.48,144.25,208.02]
[1741381044705,1.8575,144.56,144.25,208.02]
[1741381044706,0.04428751,144.45,144.42,0.05016447]
[1741381045007,208.02,144.65,144.29,48.50535789]
[1741381045008,48.50535789,144.54,144.29,48.50535789]
[1741381045203,208.02,144.65,144.29,48.50535789]
[1741381045407,48.50535789,144.55,144.29,48.50535789]
[1741381045808,48.50535789,144.5,144.25,208.02]
[1741381046010,48.50535789,144.45,144.19,3.7685]
[1741381046211,207.92,144.54,144.19,3.7685]
[1741381046212,48.50535789,144.4,144.19,3.7685]
[1741381046716,48.50535789,144.35,144.07,48.50535789]
[1741381046912,48.50535789,144.35,144.08,1.9626]
[1741381047105,48.50535789,144.3,144.08,3.8138]
[1741381047308,48.50535789,144.25,143.97,48.50535789]
[1741381047512,0.0483513,144.23,143.97,48.50535789]
[1741381047705,48.50535789,144.25,143.97,48.50535789]
[1741381048109,2.0046,144.26,144.02,48.50535789]
[1741381048309,1.8617,144.34,144.07,48.50535789]
[1741381048517,2.0046,144.36,144.12,48.50535789]
[1741381048819,48.50535789,144.44,144.19,0.04554033]
[1741381049117,48.50535789,144.44,144.17,48.50535789]
[1741381049417,48.50535789,144.29,144.08,3.8138]
[1741381049613,48.50535789,144.29,144.02,208.0]
[1741381049816,48.50535789,144.24,143.95,48.50535789]
[1741381050121,0.05190551,144.17,144.14,0.04660498]
[1741381050308,0.05190551,144.17,144.0,48.50535789]
[1741381050509,48.50535789,144.34,144.06,208.0]
[1741381050710,50.46345789,144.39,144.15,48.50535789]
[1741381051008,50.46345789,144.39,144.16,1.8457]
[1741381051308,6.9332,144.26,144.07,1.9673]
[1741381051510,48.50535789,144.29,144.07,3.813]
[1741381051713,1.9053,144.38,144.08,48.50535789]
[1741381051907,6.9292,144.35,144.13,48.50535789]
[1741381052108,48.50535789,144.49,144.18,48.50535789]
[1741381052311,48.50535789,144.49,144.23,48.50535789]
[1741381052517,48.50535789,144.49,144.19,209.8799]
[1741381052718,48.50535789,144.44,144.2,1.8613]
[1741381053012,48.50535789,144.49,144.23,48.50535789]
[1741381053322,48.50535789,144.54,144.31,0.05336623]
[1741381053709,48.50535789,144.49,144.21,1.9468]
[1741381053916,48.50535789,144.49,144.21,50.45215789]
[1741381054320,48.50535789,144.44,144.27,6.9322]
[1741381054523,48.50535789,144.44,144.21,1.9468]
[1741381054717,0.04966605,144.36,144.21,1.9468]
[1741381054911,0.04966605,144.36,144.21,50.45215789]
[1741381055116,48.50535789,144.54,144.26,48.50535789]
[1741381055615,1.9581,144.55,144.31,48.50535789]
[1741381055823,48.50535789,144.54,144.25,48.50535789]
[1741381056017,0.05132438,144.44,144.42,0.0482167]
[1741381056214,48.50535789,144.64,144.42,0.0482167]
[1741381056427,50.35605789,144.64,144.36,1.8534]
[1741381056616,1.8507,144.64,144.4,48.50535789]
[1741381056826,48.50535789,144.69,144.45,48.50535789]
[1741381057118,48.50535789,144.69,144.46,256.46535789]
[1741381057324,48.50535789,144.69,144.37,1.8233]
[1741381057325,48.50535789,144.78,144.51,48.50535789]
[1741381057521,48.50535789,144.78,144.61,6.9161]
[1741381057722,48.50535789,144.78,144.52,209.8134]
[1741381057924,48.50535789,144.73,144.52,1.8534]
[1741381058221,48.50535789,144.78,144.52,1.8534]
[1741381058621,48.50535789,144.73,144.52,1.8534]
[1741381058825,0.05059674,144.66,144.44,207.84]
[1741381059224,1.8562,144.67,144.44,207.84]
[1741381059422,207.84,144.81,144.52,48.50535789]
[1741381059722,48.50535789,144.77,144.53,1.9069]
[1741381060022,0.04764216,144.68,144.65,0.05258574]
[1741381060221,6.9082,144.78,144.68,6.9129]
[1741381060422,1.8562,144.8,144.59,207.84]
[1741381060923,1.8562,144.8,144.62,48.50535789]
[1741381061119,1.8562,144.88,144.62,48.50535789]
[1741381061425,1.8562,144.88,144.7,0.0526815]
[1741381061828,48.50535789,144.87,144.68,1.8307]
[1741381062030,48.50535789,144.87,144.6,1.9056]
[1741381062224,48.50535789,144.82,144.6,1.9056]
[1741381062430,48.50535789,144.82,144.59,207.84]
[1741381062830,0.02938718,144.72,144.7,0.04401383]
[1741381063126,48.50535789,144.87,144.7,0.04401383]
[1741381063334,48.50535789,144.87,144.62,48.50535789]
[1741381063625,1.8562,144.88,144.7,0.05263059]
[1741381063830,8.7598,144.88,144.71,207.7]
[1741381064023,48.50535789,144.97,144.72,48.50535789]
[1741381064225,1.9136,144.99,144.77,48.50535789]
[1741381064932,1.9136,144.99,144.87,0.05231344]
[1741381065325,6.9029,144.9,144.81,6.9066]
[1741381065635,1.9136,144.99,144.92,0.04365463]
[1741381066021,1.9136,144.99,144.83,207.6]
[1741381066226,1.9136,144.99,144.94,0.04514852]
[1741381066428,6.9001,144.95,144.94,4.852e-05]
[1741381066633,1.9136,144.99,144.74,207.6]
[1741381067728,0.0451,144.88,144.85,0.0447452]
[1741381068527,6.9051,144.86,144.85,0.0447452]
[1741381068728,0.0451,144.88,144.85,0.0447452]
[1741381069234,1.9136,144.99,144.85,0.0447452]
[1741381069631,1.9136,144.99,144.74,207.6]
[1741381070122,6.9066,144.83,144.74,207.6]
[1741381070328,48.50535789,144.95,144.74,207.6]
[1741381070534,48.50535789,144.95,144.77,0.05243273]
[1741381071033,1.9136,144.99,144.74,207.6]
[1741381071236,1.9136,144.99,144.85,0.04698882]
[1741381071728,1.9136,144.99,144.74,207.6]
[1741381071729,48.50535789,144.92,144.74,207.6]
[1741381072235,6.9061,144.84,144.74,207.6]
[1741381072434,1.9136,144.99,144.74,207.6]
[1741381072834,1.9136,144.99,144.77,48.50535789]
[1741381073131,1.9136,144.99,144.82,48.50535789]
[1741381073332,1.9136,144.99,144.87,0.04961679]
[1741381073737,6.9008,144.95,144.87,6.9042]
[1741381073942,1.9136,144.99,144.78,1.8929]
[1741381074330,6.9034,144.9,144.83,6.9063]
[1741381074536,1.9136,144.99,144.78,1.8929]
[1741381074736,1.9136,144.99,144.87,0.0503881]
[1741381075133,1.9136,144.99,144.78,1.8929]
[1741381075436,1.9136,144.99,144.79,41.92448192]
[1741381075637,1.9136,144.99,144.87,0.04700517]
[1741381075837,6.8995,144.98,144.91,6.9023]
[1741381076038,6.8995,144.98,144.85,207.24]
[1741381076239,1.9136,144.99,144.93,0.04830168]
[1741381076537,41.92448192,145.04,144.85,207.24]
[1741381076737,41.92448192,145.04,144.95,0.04490023]
[1741381076943,6.9003,144.96,144.95,0.04490023]
[1741381077239,6.9003,144.96,144.85,207.24]
[1741381077240,41.92448192,145.0,144.79,41.92448192]
[1741381077441,41.92448192,145.0,144.82,6.9069]
[1741381077743,41.92448192,145.0,144.79,41.92448192]
[1741381077943,41.92448192,144.96,144.78,1.8929]
[1741381078137,1.8072,144.95,144.78,1.8929]
[1741381078338,1.8072,144.95,144.77,207.24]
[1741381078531,0.05236747,144.88,144.7,1.878]
[1741381078731,41.92448192,144.84,144.61,207.22]
[1741381078945,6.9123,144.71,144.61,249.14448192]
[1741381079239,41.92448192,144.76,144.61,207.22]
[1741381079544,1.8072,144.79,144.61,249.14448192]
[1741381079935,0.05233172,144.7,144.67,0.05124873]
[1741381080338,1.8072,144.79,144.67,3.46]
[1741381080543,0.05021314,144.7,144.67,0.05076623]
[1741381080836,41.92448192,144.76,144.58,41.92448192]
[1741381081041,0.0454425,144.7,144.67,0.04617423]
[1741381081431,1.8072,144.79,144.67,3.46]
[1741381081635,41.92448192,144.83,144.64,207.22]
[1741381081834,41.92448192,144.79,144.59,1.20255024]
[1741381082039,1.8422,144.78,144.59,1.20255024]
[1741381082239,1.8422,144.78,144.6,41.92448192]
[1741381082436,41.92448192,144.71,144.51,41.92448192]
[1741381082644,41.92448192,144.71,144.52,1.20313229]
[1741381082833,0.04675871,144.7,144.68,0.04660149]
[1741381083247,252.92638192,144.77,144.55,41.92448192]
[1741381083448,0.04459189,144.7,144.68,0.05124374]
[1741381083640,6.91,144.76,144.68,0.05124374]
[1741381083840,1.8422,144.78,144.62,41.92448192]
[1741381084345,41.92448192,144.65,144.46,41.92448192]
[1741381084542,41.92448192,144.65,144.43,1.926]
[1741381084742,207.28,144.72,144.46,1.20321549]
[1741381084743,6.9199,144.55,144.46,1.20321549]
[1741381085047,41.92448192,144.6,144.43,1.926]
[1741381085248,0.05039287,144.52,144.43,1.926]
[1741381085748,6.9219,144.51,144.41,208.48442314]
[1741381085940,1.8707,144.64,144.48,41.92448192]
[1741381086435,41.92448192,144.7,144.49,1.8879]
[1741381086642,0.04936512,144.57,144.52,41.92448192]
[1741381086841,0.04936512,144.57,144.5,41.92448192]
[1741381087045,41.92448192,144.7,144.58,0.05186933]
[1741381087246,1.9357,144.71,144.58,41.97635125]
[1741381087443,1.20344434,144.79,144.62,41.92448192]
[1741381087749,41.92448192,144.78,144.63,0.04838313]
[1741381087945,41.92448192,144.74,144.54,41.92448192]
[1741381088150,41.92448192,144.7,144.53,1.9753]
[1741381088345,6.9161,144.63,144.53,1.9753]
[1741381088643,41.92448192,144.66,144.49,1.8879]
[1741381088847,41.92448192,144.58,144.36,41.92448192]
[1741381089249,41.92448192,144.54,144.38,1.2042981]
[1741381089452,1.8922,144.53,144.33,3.9387]
[1741381089651,1.8922,144.53,144.36,41.92448192]
[1741381090149,41.92448192,144.5,144.33,3.9387]
[1741381090352,41.97372277,144.46,144.28,41.92448192]
[1741381090547,41.97372277,144.46,144.27,1.20521567]
[1741381090743,1.8922,144.53,144.36,41.92448192]
[1741381090949,1.8922,144.53,144.4,41.92448192]
[1741381091144,3.8363,144.63,144.44,41.92448192]
[1741381091351,3.7845,144.63,144.44,41.92448192]
[1741381091547,41.92448192,144.62,144.4,41.92448192]
[1741381091747,0.05265081,144.55,144.52,0.05113032]
[1741381091949,0.05265081,144.55,144.37,3.9387]
[1741381091950,41.92448192,144.53,144.37,1.98]
[1741381092148,41.92448192,144.57,144.37,43.90448192]
[1741381092348,41.92448192,144.61,144.41,41.92448192]
[1741381092544,5.6213,144.63,144.41,41.92448192]
[1741381092748,42.33040404,144.9,144.49,41.92448192]
[1741381092749,41.92448192,144.73,144.49,41.92448192]
[1741381093049,41.92448192,144.73,144.42,1.8734]
[1741381093050,1.8863,144.78,144.59,41.92448192]
[1741381093254,1.8863,144.78,144.63,41.92448192]
[1741381093751,41.92448192,144.85,144.64,43.74598192]
[1741381093965,1.8863,144.86,144.69,0.0519209]
[1741381093966,1.38083402,144.84,144.69,0.0519209]
[1741381094357,43.30531594,144.84,144.64,43.74598192]
[1741381094555,41.92448192,144.76,144.64,1.8215]
[1741381094853,41.92448192,144.76,144.6,1.8734]
[1741381095047,41.92448192,144.8,144.6,43.79788192]
[1741381095252,0.04471917,144.69,144.67,0.05286028]
[1741381095547,41.92448192,144.72,144.53,1.9699]
[1741381095954,41.92448192,144.68,144.53,1.9699]
[1741381096150,41.92448192,144.72,144.53,1.9699]
[1741381096357,41.92448192,144.75,144.56,41.92448192]
[1741381096556,1.8929,144.78,144.6,41.92448192]
[1741381096757,1.38150169,144.77,144.66,6.9146]
[1741381096957,1.38150169,144.77,144.64,0.05101322]
[1741381097257,1.8929,144.95,144.72,41.92448192]
[1741381097448,1.8929,144.95,144.76,41.92448192]
[1741381097854,0.91011387,144.96,144.76,41.92448192]
[1741381098153,0.91011387,144.96,144.66,1.9115]
[1741381098154,41.92448192,145.0,144.84,0.04857782]
[1741381098356,41.92448192,145.0,144.8,41.92448192]
[1741381098554,1.9206,145.03,144.84,41.92448192]
[1741381099065,41.92448192,145.09,144.88,41.92448192]
[1741381099357,1.8379,145.1,144.94,6.9013]
[1741381099558,0.04732392,145.0,144.97,0.04935341]
[1741381099759,1.9206,145.12,144.92,41.92448192]
[1741381100160,1.9206,145.12,144.97,0.04425995]
[1741381100361,41.92448192,145.15,144.96,41.92448192]
[1741381100562,41.92448192,145.11,144.92,41.92448192]
[1741381100953,41.92448192,145.14,144.92,41.92448192]
[1741381101353,0.02496237,145.04,145.02,0.05173181]
[1741381101761,1.9965,145.18,144.97,41.92448192]
[1741381101962,1.9965,145.18,145.02,0.05140225]
[1741381102364,1.9965,145.18,145.01,41.92448192]
[1741381102764,41.92448192,145.17,144.99,3.7925]
[1741381103363,41.92448192,145.17,145.07,0.04483699]
[1741381103564,41.92448192,145.13,144.9,249.16448192]
[1741381103760,41.92448192,145.05,144.86,41.92448192]
[1741381103973,41.92448192,145.12,144.9,41.92448192]
[1741381104170,41.92448192,145.12,144.96,6.9003]
[1741381104365,209.2365,145.18,144.94,41.92448192]
[1741381104366,41.92448192,145.16,144.94,41.92448192]
[1741381104561,41.92448192,145.16,144.95,1.894]
[1741381104862,0.04483699,145.06,145.04,0.05067982]
[1741381105166,1.9965,145.18,144.98,41.92448192]
[1741381106064,41.92448192,145.15,144.98,41.92448192]
[1741381106371,41.92448192,145.15,145.07,0.04913746]
[1741381106766,41.92448192,145.15,144.96,1.9024]
[1741381107270,0.04516415,145.07,144.96,1.9024]
[1741381107475,0.04516415,145.07,144.95,1.894]
[1741381107671,1.8119,145.14,144.82,1.8225]
[1741381107874,1.8119,145.14,144.86,41.92448192]
[1741381107875,41.92448192,145.07,144.86,41.92448192]
[1741381108174,0.04697967,144.98,144.95,0.04628126]
[1741381108369,1.8119,145.14,144.95,0.04628126]
[1741381108571,1.8119,145.14,144.94,41.92448192]
[1741381108971,41.92448192,145.11,144.92,207.14]
[1741381109676,41.92448192,145.11,145.0,0.0494209]
[1741381109869,41.92448192,145.1,145.0,0.0494209]
[1741381110074,6.8959,145.06,144.92,214.0421]
[1741381110272,41.92448192,145.06,144.92,207.14]
[1741381110571,48.81858192,145.1,144.92,207.14]
[1741381110777,41.92448192,145.14,144.95,41.92448192]
[1741381110977,43.92098192,145.18,144.95,41.92448192]
[1741381111277,41.92448192,145.14,144.95,41.92448192]
[1741381111479,0.04861633,145.08,145.05,0.04790229]
[1741381111673,6.893,145.12,144.92,207.14]
[1741381111871,1.37769511,145.17,144.95,41.92448192]
[1741381112076,41.92448192,145.14,144.96,1.938]
[1741381112378,41.92448192,145.1,144.92,207.14]
[1741381112877,0.0511492,145.02,145.0,0.05160801]
[1741381113073,41.92448192,145.01,144.84,208.978]
[1741381113279,41.92448192,145.01,144.85,1.38073869]
[1741381113467,41.92448192,145.05,144.87,41.92448192]
[1741381113667,6.8936,145.11,144.91,41.92448192]
[1741381113877,41.92448192,145.12,144.91,41.92448192]
[1741381114382,2.2678,145.14,145.0,0.04724205]
[1741381114383,0.05223768,145.03,145.0,0.04724205]
[1741381114681,41.92448192,145.12,144.91,41.92448192]
[1741381114981,0.04411642,145.03,145.0,0.05194036]
[1741381115178,207.02,145.29,145.0,0.05194036]
[1741381115482,41.92448192,145.24,145.03,41.92448192]
[1741381115677,41.92448192,145.23,145.02,41.92448192]
[1741381115982,41.92448192,145.23,145.01,41.92448192]
[1741381116577,41.92448192,145.23,145.08,0.04900652]
[1741381116578,0.04555859,145.1,145.08,0.04900652]
[1741381116774,46.25958192,145.27,145.08,0.04900652]
[1741381116975,46.25958192,145.27,145.02,41.92448192]
[1741381116976,41.92448192,145.23,145.02,41.92448192]
[1741381117875,1.19929696,145.26,145.0,2.3138]
[1741381117876,46.25958192,145.27,145.08,0.04963117]
[1741381118080,4.3351,145.27,145.06,41.92448192]
[1741381118284,0.05266319,145.13,145.11,0.04581548]
[1741381119378,3.49266319,145.13,145.0,2.3138]
[1741381119576,0.05266319,145.13,145.0,2.3138]
[1741381119879,43.30217703,145.17,145.0,2.3138]
[1741381120475,41.92448192,145.13,144.95,206.96]
[1741381120777,41.92448192,145.09,144.91,2.4501]
[1741381121183,6.8965,145.04,144.94,6.9008]
[1741381121383,6.8965,145.04,144.91,2.4501]
[1741381121685,41.92448192,145.05,144.91,2.4501]
[1741381121882,0.0460259,144.99,144.96,0.05264032]
[1741381122083,41.92448192,145.05,144.88,1.38045278]
[1741381122279,41.92448192,145.01,144.88,1.38045278]
[1741381122679,41.92448192,144.97,144.88,1.38045278]
[1741381123285,3.46,144.97,144.73,2.3407]
[1741381123488,41.92448192,144.86,144.73,2.3407]
[1741381123688,41.92448192,144.86,144.69,1.20167821]
[1741381123985,41.92448192,144.82,144.64,41.92448192]
[1741381124183,41.92448192,144.82,144.63,1.20232172]
[1741381124385,41.92448192,144.82,144.6,41.92448192]
[1741381124582,0.04495768,144.77,144.61,1.20250868]
[1741381124777,41.92448192,144.82,144.61,1.20250868]
[1741381124981,41.92448192,144.82,144.64,41.92448192]
[1741381125181,207.02,144.84,144.64,41.92448192]
[1741381125383,41.92448192,144.82,144.6,41.92448192]
[1741381125883,207.02,144.84,144.7,0.05300659]
[1741381126083,41.92448192,144.89,144.7,0.05300659]
[1741381126386,6.9051,144.87,144.72,41.92448192]
[1741381126581,41.92448192,144.89,144.7,2.4667]
[1741381126781,41.92448192,144.85,144.69,2.3385]
[1741381126986,41.92448192,144.89,144.69,2.3385]
[1741381127187,0.05078694,144.78,144.76,0.04593603]
[1741381127388,0.05078694,144.78,144.48,207.1]
[1741381127585,207.1,144.79,144.59,41.92448192]
[1741381127785,207.1,144.79,144.6,2.3385]
[1741381128079,41.92448192,144.85,144.67,41.92448192]
[1741381128284,0.05278056,144.77,144.75,0.05178015]
[1741381129789,2.4378,144.87,144.75,0.05178015]
[1741381130088,41.92448192,144.84,144.63,41.92448192]
[1741381130985,0.0509378,144.75,144.72,2.106e-05]
[1741381131187,6.9113,144.73,144.72,2.106e-05]
[1741381131388,0.0509378,144.75,144.61,2.4671]
[1741381131389,3.46,144.75,144.61,2.4671]
[1741381131584,207.18,144.78,144.61,2.4671]
[1741381131790,207.18,144.78,144.63,41.92448192]
[1741381132090,4.6033,144.82,144.63,41.92448192]
[1741381132387,0.05282241,144.72,144.69,0.04461297]
[1741381132594,41.92448192,144.79,144.61,9.3837]
[1741381132784,41.92448192,144.79,144.61,2.4671]
[1741381132983,0.04731046,144.72,144.69,0.05084239]
[1741381133384,4.6033,144.82,144.69,0.04406975]
[1741381133592,2.3261,144.82,144.64,41.92448192]
[1741381133889,0.04559968,144.77,144.74,0.04579349]
[1741381135180,3.50559968,144.77,144.6,41.92448192]
[1741381135380,0.04559968,144.77,144.6,41.92448192]
[1741381135586,41.92448192,144.78,144.56,41.92448192]
[1741381135891,2.3261,144.82,144.64,41.92448192]
[1741381136493,0.05180248,144.74,144.72,0.04419027]
[1741381136688,207.18,144.85,144.68,41.92448192]
[1741381136890,0.04933045,144.74,144.72,0.04736051]
[1741381137090,207.18,144.85,144.68,41.92448192]
[1741381137488,45.4043984,144.9,144.72,41.92448192]
[1741381137489,44.20168192,144.9,144.72,41.92448192]
[1741381137688,207.28,144.93,144.76,41.92448192]
[1741381138392,0.0482105,144.86,144.83,0.05111926]
[1741381139290,0.0482105,144.86,144.83,1.926e-05]
[1741381139487,6.9061,144.84,144.83,1.926e-05]
[1741381139892,10.3661,144.84,144.83,1.926e-05]
[1741381140096,3.46,144.84,144.63,250.58732088]
[1741381140290,41.92448192,144.81,144.63,250.58732088]
[1741381140495,41.92448192,144.77,144.61,2.288]
[1741381140790,41.92448192,144.73,144.54,3.50935024]
[1741381141094,41.92448192,144.69,144.47,44.34648192]
[1741381141287,0.0449133,144.65,144.47,44.34648192]
[1741381141482,41.92448192,144.69,144.47,45.55007194]
[1741381141790,41.92448192,144.69,144.51,41.92448192]
[1741381142187,41.92448192,144.65,144.47,46.93444239]
[1741381142389,0.04883133,144.61,144.59,0.04922371]
[1741381142586,2.3204,144.72,144.55,41.92448192]
[1741381142794,41.92448192,144.77,144.59,41.92448192]
[1741381143298,207.36,144.8,144.59,41.92448192]
[1741381143497,207.36,144.8,144.63,41.92448192]
[1741381143691,207.36,144.8,144.56,4.6855]
[1741381143692,41.92448192,144.73,144.56,4.6855]
[1741381144092,41.92448192,144.69,144.56,2.3787]
[1741381144289,2.4302,144.72,144.56,2.3787]
[1741381144893,41.92448192,144.77,144.59,41.92448192]
[1741381145096,0.05122016,144.65,144.63,0.04783774]
[1741381145297,41.92448192,144.77,144.56,2.3787]
[1741381145596,0.04422903,144.65,144.63,0.04540924]
[1741381145896,6.9138,144.68,144.54,6.9201]
[1741381146198,249.32448192,144.69,144.5,41.92448192]
[1741381146398,207.4,144.69,144.5,41.92448192]
[1741381146802,41.92448192,144.73,144.54,41.92448192]
[1741381147098,41.92448192,144.65,144.39,290.00168971]
[1741381147292,48.8897924,144.65,144.43,41.92448192]
[1741381147600,41.92448192,144.57,144.4,4.912]
[1741381147793,6.9195,144.56,144.43,6.9253]
[1741381147991,41.92448192,144.59,144.4,4.912]
[1741381148194,44.49178192,144.63,144.43,41.92448192]
[1741381148390,6.9179,144.6,144.47,6.9234]
[1741381148593,0.05166819,144.54,144.52,0.04741061]